[Event "*** MasterClass Titled Tuesday Blitz"]
[Site "Chess.com"]
[Date "2017.10.03"]
[Round "9"]
[White "PowerThinking2650"]
[Black "guilhermedeola"]
[Result "0-1"]
[WhiteElo "2143"]
[BlackElo "2088"]
[TimeControl "180+2"]
[EndTime "15:04:27 PDT"]
[Termination "guilhermedeola won on time"]

1. e4 {[%clk 0:03:01.2]} 1... c5 {[%clk 0:02:59.4]} 2. Nf3 {[%clk 0:03:00.9]}
2... e6 {[%clk 0:02:59]} 3. d4 {[%clk 0:03:01]} 3... cxd4 {[%clk 0:03:00]} 4.
Nxd4 {[%clk 0:03:02.9]} 4... Nc6 {[%clk 0:03:00.4]} 5. Nc3 {[%clk 0:02:57]} 5...
Qc7 {[%clk 0:03:01.3]} 6. Be3 {[%clk 0:02:56.6]} 6... a6 {[%clk 0:03:00.4]} 7.
Qd2 {[%clk 0:02:45]} 7... Nf6 {[%clk 0:03:00.4]} 8. f3 {[%clk 0:02:43.1]} 8...
b5 {[%clk 0:03:00.3]} 9. O-O-O {[%clk 0:02:39.2]} 9... Bb7 {[%clk 0:02:56.5]}
10. g4 {[%clk 0:02:25.6]} 10... Bb4 {[%clk 0:02:56.6]} 11. g5 {[%clk 0:02:21.1]}
11... Nh5 {[%clk 0:02:56]} 12. a3 {[%clk 0:02:20.4]} 12... Be7 {[%clk
0:02:48.1]} 13. Bh3 {[%clk 0:02:05.7]} 13... b4 {[%clk 0:02:47.8]} 14. axb4
{[%clk 0:01:58.3]} 14... Bxb4 {[%clk 0:02:45.7]} 15. Bg4 {[%clk 0:01:57.8]}
15... g6 {[%clk 0:02:43.7]} 16. Bxh5 {[%clk 0:01:49.1]} 16... gxh5 {[%clk
0:02:44.5]} 17. Nxc6 {[%clk 0:01:50]} 17... Bxc6 {[%clk 0:02:42.3]} 18. Qd4
{[%clk 0:01:41.9]} 18... Qa5 {[%clk 0:02:40.5]} 19. Qxh8+ {[%clk 0:01:41.4]}
19... Ke7 {[%clk 0:02:40.4]} 20. Qf6+ {[%clk 0:01:36.1]} 20... Ke8 {[%clk
0:02:41]} 21. g6 {[%clk 0:01:16.2]} 21... hxg6 {[%clk 0:02:38.6]} 22. Bg5 {[%clk
0:01:13.7]} 22... Bb5 {[%clk 0:01:55.1]} 23. Qh8+ {[%clk 0:00:57.6]} 23... Bf8
{[%clk 0:01:55.5]} 24. Kb1 {[%clk 0:00:24.6]} 24... Bc4 {[%clk 0:01:49.6]} 25.
Rxd7 {[%clk 0:00:13.3]} 25... Kxd7 {[%clk 0:01:45.2]} 26. Rd1+ {[%clk
0:00:13.6]} 26... Kc7 {[%clk 0:01:42.2]} 27. Qd4 {[%clk 0:00:13.8]} 27... Qxg5
{[%clk 0:01:25]} 28. Qxc4+ {[%clk 0:00:13.8]} 28... Qc5 {[%clk 0:01:22.3]} 29.
Qa4 {[%clk 0:00:07.8]} 29... Bd6 {[%clk 0:01:19.5]} 30. e5 {[%clk 0:00:06.7]}
30... Qxe5 {[%clk 0:01:18.4]} 31. Ne4 {[%clk 0:00:06.9]} 31... Rb8 {[%clk
0:01:16.5]} 32. c3 {[%clk 0:00:08.1]} 32... Qb5 {[%clk 0:01:01.7]} 33. Qxb5
{[%clk 0:00:05.6]} 33... axb5 {[%clk 0:01:02.6]} 34. Nxd6 {[%clk 0:00:06.5]}
34... Kc6 {[%clk 0:01:00.6]} 35. Nxf7 {[%clk 0:00:06]} 35... Rf8 {[%clk
0:00:59.2]} 36. Ne5+ {[%clk 0:00:06.9]} 36... Kc7 {[%clk 0:00:58.8]} 37. Kc2
{[%clk 0:00:06.3]} 37... Rf5 {[%clk 0:00:59.5]} 38. Re1 {[%clk 0:00:07.2]} 38...
Rg5 {[%clk 0:00:59.3]} 39. Re2 {[%clk 0:00:07.6]} 39... h4 {[%clk 0:00:56.7]}
40. b4 {[%clk 0:00:08.3]} 40... h3 {[%clk 0:00:57.5]} 41. Ng4 {[%clk 0:00:07.2]}
41... Rf5 {[%clk 0:00:58.2]} 42. Rxe6 {[%clk 0:00:07.1]} 42... Rxf3 {[%clk
0:00:56]} 43. Rxg6 {[%clk 0:00:07.9]} 43... Rf1 {[%clk 0:00:56.7]} 44. Ne5
{[%clk 0:00:01.8]} 44... Rf2+ {[%clk 0:00:55.2]} 45. Kd3 {[%clk 0:00:03]} 45...
Rxh2 {[%clk 0:00:55.9]} 46. Kd4 {[%clk 0:00:04.2]} 46... Rd2+ {[%clk 0:00:54.1]}
47. Kc5 {[%clk 0:00:03.8]} 47... Re2 {[%clk 0:00:54.4]} 0-1

[Event "*** MasterClass Titled Tuesday Blitz"]
[Site "Chess.com"]
[Date "2017.10.03"]
[Round "9"]
[White "IMVoja"]
[Black "plouarzel"]
[Result "1-0"]
[WhiteElo "2419"]
[BlackElo "2462"]
[TimeControl "180+2"]
[EndTime "15:04:47 PDT"]
[Termination "IMVoja won by checkmate"]

1. Nf3 {[%clk 0:03:01.9]} 1... d6 {[%clk 0:02:58.8]} 2. d4 {[%clk 0:03:02]} 2...
g6 {[%clk 0:02:58.3]} 3. Bf4 {[%clk 0:03:01.3]} 3... Bg7 {[%clk 0:02:57.1]} 4.
e3 {[%clk 0:03:02.8]} 4... Nf6 {[%clk 0:02:57.7]} 5. h3 {[%clk 0:03:03.9]} 5...
O-O {[%clk 0:02:58]} 6. Bc4 {[%clk 0:03:04.9]} 6... c5 {[%clk 0:02:58]} 7. c3
{[%clk 0:03:05.3]} 7... cxd4 {[%clk 0:02:48.4]} 8. exd4 {[%clk 0:03:04.5]} 8...
Nc6 {[%clk 0:02:49.8]} 9. O-O {[%clk 0:03:04.9]} 9... Bd7 {[%clk 0:02:25.5]} 10.
Re1 {[%clk 0:03:05]} 10... Rc8 {[%clk 0:02:26.4]} 11. Nbd2 {[%clk 0:03:04.7]}
11... a6 {[%clk 0:02:23.9]} 12. a4 {[%clk 0:03:04.7]} 12... Na5 {[%clk
0:02:15.8]} 13. Ba2 {[%clk 0:03:04.8]} 13... b5 {[%clk 0:02:15.3]} 14. axb5
{[%clk 0:03:01.7]} 14... axb5 {[%clk 0:02:17.2]} 15. Qe2 {[%clk 0:02:56.1]}
15... Re8 {[%clk 0:01:46.2]} 16. Ng5 {[%clk 0:02:50.1]} 16... d5 {[%clk
0:01:39.2]} 17. Ndf3 {[%clk 0:02:46.3]} 17... h6 {[%clk 0:01:18]} 18. Nxf7
{[%clk 0:02:45.8]} 18... Kxf7 {[%clk 0:01:19.9]} 19. Ne5+ {[%clk 0:02:46.9]}
19... Kg8 {[%clk 0:01:21.3]} 20. Nxg6 {[%clk 0:02:45.6]} 20... Bf5 {[%clk
0:01:01.7]} 21. Ne5 {[%clk 0:02:20.3]} 21... Nc4 {[%clk 0:00:55.6]} 22. Bb1
{[%clk 0:02:08.9]} 22... Bxb1 {[%clk 0:00:54.2]} 23. Rexb1 {[%clk 0:02:07.5]}
23... Ne4 {[%clk 0:00:39.6]} 24. Nxc4 {[%clk 0:01:45.2]} 24... bxc4 {[%clk
0:00:36.9]} 25. f3 {[%clk 0:01:46.2]} 25... Nf6 {[%clk 0:00:34.8]} 26. Qe6+
{[%clk 0:01:46.1]} 26... Kh8 {[%clk 0:00:30]} 27. Ra7 {[%clk 0:01:45.5]} 27...
Ra8 {[%clk 0:00:20.3]} 28. Rba1 {[%clk 0:01:41.1]} 28... Rxa7 {[%clk 0:00:21.2]}
29. Rxa7 {[%clk 0:01:41.7]} 29... Qc8 {[%clk 0:00:22.2]} 30. Qf7 {[%clk
0:01:31.3]} 30... Ng8 {[%clk 0:00:16.2]} 31. Rc7 {[%clk 0:01:18.3]} 31... Qa8
{[%clk 0:00:16.3]} 32. Qh5 {[%clk 0:00:47.8]} 32... Rf8 {[%clk 0:00:17]} 33. Be5
{[%clk 0:00:46.9]} 33... Bxe5 {[%clk 0:00:15.3]} 34. Qxe5+ {[%clk 0:00:47.7]}
34... Kh7 {[%clk 0:00:14.4]} 35. Qe2 {[%clk 0:00:27.2]} 35... Rf7 {[%clk
0:00:15]} 36. Rd7 {[%clk 0:00:24.6]} 36... Qc6 {[%clk 0:00:12.7]} 37. Rd8 {[%clk
0:00:23.9]} 37... Qf6 {[%clk 0:00:12.8]} 38. Qc2+ {[%clk 0:00:23.5]} 38... Kg7
{[%clk 0:00:13]} 39. Qe2 {[%clk 0:00:22.5]} 39... Qf4 {[%clk 0:00:11.8]} 40.
Rxd5 {[%clk 0:00:17.9]} 40... Nf6 {[%clk 0:00:10.5]} 41. Re5 {[%clk 0:00:18.1]}
41... Kf8 {[%clk 0:00:09.4]} 42. Qe3 {[%clk 0:00:17.6]} 42... Qg3 {[%clk
0:00:09.4]} 43. Qf2 {[%clk 0:00:16.6]} 43... Qg6 {[%clk 0:00:09.2]} 44. Qe2
{[%clk 0:00:17.3]} 44... h5 {[%clk 0:00:09.9]} 45. Qxc4 {[%clk 0:00:16.8]} 45...
h4 {[%clk 0:00:09.6]} 46. Qc8+ {[%clk 0:00:16.6]} 46... Kg7 {[%clk 0:00:10.2]}
47. Qe6 {[%clk 0:00:17.3]} 47... Qb1+ {[%clk 0:00:09.2]} 48. Kh2 {[%clk
0:00:17.2]} 48... Qxb2 {[%clk 0:00:10.8]} 49. Re3 {[%clk 0:00:14.3]} 49... Qb8+
{[%clk 0:00:10.8]} 50. Qe5 {[%clk 0:00:14.7]} 50... Qb7 {[%clk 0:00:10.1]} 51.
Qg5+ {[%clk 0:00:15]} 51... Kf8 {[%clk 0:00:11.5]} 52. Qxh4 {[%clk 0:00:16.2]}
52... Qc7+ {[%clk 0:00:12.5]} 53. Qg3 {[%clk 0:00:16.1]} 53... Qc4 {[%clk
0:00:13.5]} 54. Qe5 {[%clk 0:00:15.7]} 54... Nd5 {[%clk 0:00:12.7]} 55. Qh8#
{[%clk 0:00:15.6]} 1-0

[Event "*** MasterClass Titled Tuesday Blitz"]
[Site "Chess.com"]
[Date "2017.10.03"]
[Round "9"]
[White "chessking2151"]
[Black "HanSchut"]
[Result "1-0"]
[WhiteElo "2393"]
[BlackElo "2231"]
[TimeControl "180+2"]
[EndTime "15:04:54 PDT"]
[Termination "chessking2151 won by resignation"]

1. e4 {[%clk 0:03:00.9]} 1... c5 {[%clk 0:02:59.3]} 2. Nf3 {[%clk 0:03:01.4]}
2... d6 {[%clk 0:03:00.3]} 3. d4 {[%clk 0:02:59.8]} 3... cxd4 {[%clk 0:03:02.2]}
4. Nxd4 {[%clk 0:03:01.2]} 4... Nf6 {[%clk 0:03:03.7]} 5. Nc3 {[%clk 0:03:02.2]}
5... a6 {[%clk 0:03:05.2]} 6. Be3 {[%clk 0:03:03.4]} 6... e5 {[%clk 0:03:06.3]}
7. Nb3 {[%clk 0:03:03.9]} 7... Be6 {[%clk 0:03:07.9]} 8. f3 {[%clk 0:03:04.8]}
8... Be7 {[%clk 0:03:09.3]} 9. Qd2 {[%clk 0:03:06.2]} 9... O-O {[%clk
0:03:10.7]} 10. O-O-O {[%clk 0:03:07]} 10... Nbd7 {[%clk 0:03:10.2]} 11. g4
{[%clk 0:03:08.1]} 11... b5 {[%clk 0:03:11.6]} 12. g5 {[%clk 0:03:09.5]} 12...
b4 {[%clk 0:03:12.7]} 13. gxf6 {[%clk 0:03:10.9]} 13... bxc3 {[%clk 0:03:12.2]}
14. Qxc3 {[%clk 0:03:12.8]} 14... Nxf6 {[%clk 0:03:10.8]} 15. Na5 {[%clk
0:03:14.1]} 15... Qd7 {[%clk 0:02:35]} 16. Nc6 {[%clk 0:03:07.4]} 16... Rfc8
{[%clk 0:02:34.1]} 17. Nxe7+ {[%clk 0:03:08.3]} 17... Qxe7 {[%clk 0:02:36]} 18.
Qa5 {[%clk 0:03:09.7]} 18... Qb7 {[%clk 0:02:06.5]} 19. Kb1 {[%clk 0:02:40.1]}
19... d5 {[%clk 0:01:57.9]} 20. Bg5 {[%clk 0:02:34.7]} 20... dxe4 {[%clk
0:01:33.6]} 21. Bxf6 {[%clk 0:02:28.6]} 21... gxf6 {[%clk 0:01:34.1]} 22. fxe4
{[%clk 0:02:29.9]} 22... Rab8 {[%clk 0:01:20.3]} 23. b3 {[%clk 0:02:26.2]} 23...
Qxe4 {[%clk 0:01:12.8]} 24. Bd3 {[%clk 0:02:17.2]} 24... Qb4 {[%clk 0:01:13.3]}
25. Rhg1+ {[%clk 0:02:08.7]} 25... Kh8 {[%clk 0:01:09.6]} 26. Qxb4 {[%clk
0:02:09.1]} 26... Rxb4 {[%clk 0:01:09.7]} 27. Rdf1 {[%clk 0:02:00.3]} 27... e4
{[%clk 0:01:00.4]} 28. Bxa6 {[%clk 0:02:01.1]} 28... Rg8 {[%clk 0:00:51.6]} 29.
Rxg8+ {[%clk 0:01:54]} 29... Kxg8 {[%clk 0:00:53.5]} 30. Re1 {[%clk 0:01:32.4]}
30... f5 {[%clk 0:00:52.2]} 31. a4 {[%clk 0:01:24.1]} 31... Kg7 {[%clk
0:00:37.9]} 32. Bb5 {[%clk 0:01:18.2]} 32... Kf6 {[%clk 0:00:30.4]} 33. Kb2
{[%clk 0:01:14.8]} 33... Rd4 {[%clk 0:00:25.9]} 34. Kc3 {[%clk 0:01:07.7]} 34...
Rd8 {[%clk 0:00:23]} 35. a5 {[%clk 0:01:08.5]} 35... Rd5 {[%clk 0:00:19.8]} 36.
Kb4 {[%clk 0:01:06.3]} 36... Ke5 {[%clk 0:00:19.7]} 37. a6 {[%clk 0:01:02.7]}
37... Rd4+ {[%clk 0:00:20.9]} 38. c4 {[%clk 0:01:00.4]} 38... f4 {[%clk
0:00:20.5]} 39. a7 {[%clk 0:00:57.8]} 39... Bd5 {[%clk 0:00:21.6]} 40. Kc5
{[%clk 0:00:55.6]} 40... Ba8 {[%clk 0:00:21.4]} 41. Bc6 {[%clk 0:00:28.9]} 41...
Bxc6 {[%clk 0:00:21.9]} 42. Kxc6 {[%clk 0:00:30.1]} 42... Rd8 {[%clk 0:00:23.1]}
43. b4 {[%clk 0:00:25.8]} 43... f3 {[%clk 0:00:23.9]} 44. b5 {[%clk 0:00:23.7]}
44... f2 {[%clk 0:00:25.2]} 45. Ra1 {[%clk 0:00:24.8]} 45... e3 {[%clk
0:00:25.8]} 46. Kc7 {[%clk 0:00:25.4]} 46... Re8 {[%clk 0:00:25]} 47. b6 {[%clk
0:00:25.2]} 47... e2 {[%clk 0:00:26.2]} 48. b7 {[%clk 0:00:22.1]} 48... e1=Q
{[%clk 0:00:24.9]} 49. Rxe1+ {[%clk 0:00:17.1]} 49... fxe1=Q {[%clk 0:00:25.5]}
50. b8=Q {[%clk 0:00:18.6]} 50... Qa5+ {[%clk 0:00:21.9]} 51. Kd7+ {[%clk
0:00:19.6]} 51... Kf6 {[%clk 0:00:12.3]} 52. Kxe8 {[%clk 0:00:12.9]} 52... Qa4+
{[%clk 0:00:10.9]} 53. Kd8 {[%clk 0:00:13.6]} 53... Qxc4 {[%clk 0:00:07.8]} 54.
Qd6+ {[%clk 0:00:12.6]} 54... Kg7 {[%clk 0:00:08]} 55. a8=Q {[%clk 0:00:12.8]}
55... Qh4+ {[%clk 0:00:07]} 56. Kc7 {[%clk 0:00:11.2]} 56... Qc4+ {[%clk
0:00:05.2]} 57. Qac6 {[%clk 0:00:12.2]} 1-0

[Event "*** MasterClass Titled Tuesday Blitz"]
[Site "Chess.com"]
[Date "2017.10.03"]
[Round "9"]
[White "Diwi89"]
[Black "RaphaeI"]
[Result "1/2-1/2"]
[WhiteElo "2530"]
[BlackElo "2442"]
[TimeControl "180+2"]
[EndTime "15:05:05 PDT"]
[Termination "Game drawn - insufficient material"]

1. e4 {[%clk 0:03:01.9]} 1... c5 {[%clk 0:02:59.7]} 2. Nf3 {[%clk 0:03:02.8]}
2... Nc6 {[%clk 0:02:59.6]} 3. c3 {[%clk 0:03:02]} 3... Nf6 {[%clk 0:02:59.5]}
4. e5 {[%clk 0:02:55.9]} 4... Nd5 {[%clk 0:03:00.3]} 5. Bc4 {[%clk 0:02:51.5]}
5... Nb6 {[%clk 0:03:00.8]} 6. Bb3 {[%clk 0:02:52.1]} 6... d5 {[%clk 0:03:02]}
7. exd6 {[%clk 0:02:49.6]} 7... Qxd6 {[%clk 0:03:03]} 8. O-O {[%clk 0:02:48.9]}
8... Be6 {[%clk 0:03:01.8]} 9. Na3 {[%clk 0:02:49.3]} 9... Bxb3 {[%clk
0:02:45.4]} 10. axb3 {[%clk 0:02:51.2]} 10... Qd3 {[%clk 0:02:43.2]} 11. Ne1
{[%clk 0:02:49.8]} 11... Qd7 {[%clk 0:02:41.6]} 12. Nf3 {[%clk 0:02:50.8]} 12...
e6 {[%clk 0:02:35.8]} 13. d4 {[%clk 0:02:45.8]} 13... cxd4 {[%clk 0:02:33.9]}
14. Nb5 {[%clk 0:02:46.9]} 14... Be7 {[%clk 0:01:39.3]} 15. Nbxd4 {[%clk
0:02:41.9]} 15... Bf6 {[%clk 0:01:25.5]} 16. Nxc6 {[%clk 0:02:40.7]} 16... Qxc6
{[%clk 0:01:23.2]} 17. Nd4 {[%clk 0:02:27]} 17... Qd7 {[%clk 0:01:19.6]} 18. Be3
{[%clk 0:02:23.1]} 18... Nd5 {[%clk 0:01:20.3]} 19. Bc1 {[%clk 0:02:15]} 19...
O-O {[%clk 0:01:16.4]} 20. Qg4 {[%clk 0:02:15.8]} 20... a6 {[%clk 0:00:55.9]}
21. Re1 {[%clk 0:02:16.8]} 21... Rad8 {[%clk 0:00:51.8]} 22. Bg5 {[%clk
0:02:15.6]} 22... Bxg5 {[%clk 0:00:39]} 23. Qxg5 {[%clk 0:02:17.5]} 23... f6
{[%clk 0:00:39.8]} 24. Qg4 {[%clk 0:01:48.7]} 24... e5 {[%clk 0:00:41]} 25. Nf5
{[%clk 0:01:48.2]} 25... g6 {[%clk 0:00:41.2]} 26. Nh6+ {[%clk 0:01:35.4]} 26...
Kg7 {[%clk 0:00:42.1]} 27. Qxd7+ {[%clk 0:01:36.4]} 27... Rxd7 {[%clk
0:00:42.8]} 28. Ng4 {[%clk 0:01:38]} 28... h5 {[%clk 0:00:39.9]} 29. Ne3 {[%clk
0:01:38.3]} 29... Nxe3 {[%clk 0:00:41.2]} 30. Rxe3 {[%clk 0:01:39.1]} 30... Rd2
{[%clk 0:00:42.8]} 31. Rb1 {[%clk 0:01:39.6]} 31... Rfd8 {[%clk 0:00:43]} 32.
Kf1 {[%clk 0:01:29.4]} 32... Rc2 {[%clk 0:00:28]} 33. Re2 {[%clk 0:01:27.3]}
33... Rdd2 {[%clk 0:00:28.9]} 34. Rxd2 {[%clk 0:01:28.4]} 34... Rxd2 {[%clk
0:00:30.8]} 35. b4 {[%clk 0:01:28.4]} 35... Kf7 {[%clk 0:00:25.5]} 36. Ke1
{[%clk 0:01:29.5]} 36... Rc2 {[%clk 0:00:24.4]} 37. Rd1 {[%clk 0:01:30.5]} 37...
Ke6 {[%clk 0:00:18.9]} 38. Rd8 {[%clk 0:01:29.2]} 38... Rxb2 {[%clk 0:00:17.2]}
39. Rb8 {[%clk 0:01:30.3]} 39... Rb1+ {[%clk 0:00:11.5]} 40. Ke2 {[%clk
0:01:30.3]} 40... Rb2+ {[%clk 0:00:12.8]} 41. Ke3 {[%clk 0:01:31.1]} 41... b5
{[%clk 0:00:12.2]} 42. Rb6+ {[%clk 0:01:31.5]} 42... Kd5 {[%clk 0:00:12]} 43.
Rxa6 {[%clk 0:01:31.3]} 43... f5 {[%clk 0:00:09.9]} 44. g3 {[%clk 0:01:27.2]}
44... g5 {[%clk 0:00:10.7]} 45. Rh6 {[%clk 0:01:16.2]} 45... f4+ {[%clk
0:00:11.7]} 46. gxf4 {[%clk 0:01:17.2]} 46... gxf4+ {[%clk 0:00:13.6]} 47. Kf3
{[%clk 0:01:18.5]} 47... Rc2 {[%clk 0:00:15.1]} 48. Rxh5 {[%clk 0:01:19.7]}
48... Rxc3+ {[%clk 0:00:16.5]} 49. Kg4 {[%clk 0:01:21.1]} 49... Rb3 {[%clk
0:00:17.9]} 50. Rh8 {[%clk 0:01:21.5]} 50... Rxb4 {[%clk 0:00:19]} 51. h4 {[%clk
0:01:23]} 51... Rb1 {[%clk 0:00:18.1]} 52. h5 {[%clk 0:01:22.4]} 52... Rh1
{[%clk 0:00:18.3]} 53. Kf5 {[%clk 0:01:22.9]} 53... b4 {[%clk 0:00:18.8]} 54. h6
{[%clk 0:01:23.3]} 54... Kc6 {[%clk 0:00:16.4]} 55. Rb8 {[%clk 0:01:18.6]} 55...
Rxh6 {[%clk 0:00:15.1]} 56. Kxe5 {[%clk 0:01:20]} 56... Rh2 {[%clk 0:00:12]} 57.
f3 {[%clk 0:01:21]} 57... Kc5 {[%clk 0:00:12.4]} 58. Kxf4 {[%clk 0:01:21.7]}
58... Kc4 {[%clk 0:00:13.7]} 59. Ke5 {[%clk 0:01:22.7]} 59... Re2+ {[%clk
0:00:13.6]} 60. Kf5 {[%clk 0:01:23]} 60... b3 {[%clk 0:00:14.7]} 61. f4 {[%clk
0:01:24.4]} 61... b2 {[%clk 0:00:13]} 62. Kf6 {[%clk 0:01:23.3]} 62... Kc3
{[%clk 0:00:13.5]} 63. f5 {[%clk 0:01:24.6]} 63... Rd2 {[%clk 0:00:14.5]} 64.
Kf7 {[%clk 0:01:22.9]} 64... Rd7+ {[%clk 0:00:12.6]} 65. Ke6 {[%clk 0:01:22.1]}
65... Rd4 {[%clk 0:00:07]} 66. f6 {[%clk 0:01:21.9]} 66... Re4+ {[%clk
0:00:04.8]} 67. Kd5 {[%clk 0:01:18.7]} 67... Rf4 {[%clk 0:00:05.3]} 68. Ke5
{[%clk 0:01:16.7]} 68... Rxf6 {[%clk 0:00:06]} 69. Kxf6 {[%clk 0:01:13.9]} 69...
Kc2 {[%clk 0:00:07.9]} 70. Ke5 {[%clk 0:01:14.4]} 70... b1=Q {[%clk 0:00:08.9]}
71. Rxb1 {[%clk 0:01:15.1]} 71... Kxb1 {[%clk 0:00:10.8]} 1/2-1/2

[Event "*** MasterClass Titled Tuesday Blitz"]
[Site "Chess.com"]
[Date "2017.10.03"]
[Round "9"]
[White "toad"]
[Black "Semetey"]
[Result "0-1"]
[WhiteElo "2126"]
[BlackElo "2388"]
[TimeControl "180+2"]
[EndTime "15:05:06 PDT"]
[Termination "Semetey won by resignation"]

1. d4 {[%clk 0:03:01.9]} 1... Nf6 {[%clk 0:02:59.6]} 2. c4 {[%clk 0:03:02.8]}
2... d6 {[%clk 0:03:00.2]} 3. g3 {[%clk 0:03:03.1]} 3... g6 {[%clk 0:03:00.2]}
4. Bg2 {[%clk 0:03:03.5]} 4... c6 {[%clk 0:03:01.1]} 5. Nf3 {[%clk 0:03:03.2]}
5... Bg7 {[%clk 0:03:01.5]} 6. O-O {[%clk 0:03:03.9]} 6... O-O {[%clk
0:03:02.3]} 7. Nc3 {[%clk 0:03:02.3]} 7... Bf5 {[%clk 0:03:03.3]} 8. Re1 {[%clk
0:02:50.8]} 8... Ne4 {[%clk 0:03:04]} 9. Nxe4 {[%clk 0:02:50.9]} 9... Bxe4
{[%clk 0:03:04.9]} 10. b3 {[%clk 0:02:46]} 10... d5 {[%clk 0:03:05.6]} 11. Bb2
{[%clk 0:02:46.3]} 11... Nd7 {[%clk 0:03:06.3]} 12. Rc1 {[%clk 0:02:43]} 12...
Qa5 {[%clk 0:03:06.4]} 13. a3 {[%clk 0:02:36.6]} 13... Rfd8 {[%clk 0:03:06.4]}
14. b4 {[%clk 0:02:11.8]} 14... Qa6 {[%clk 0:03:05.3]} 15. c5 {[%clk 0:02:12.6]}
15... Rac8 {[%clk 0:02:57.6]} 16. Qd2 {[%clk 0:02:13.2]} 16... b5 {[%clk
0:02:53.2]} 17. Qe3 {[%clk 0:01:56.6]} 17... Re8 {[%clk 0:02:53.3]} 18. Nd2
{[%clk 0:01:38.9]} 18... Bxg2 {[%clk 0:02:53.5]} 19. Kxg2 {[%clk 0:01:40.8]}
19... e5 {[%clk 0:02:54.7]} 20. dxe5 {[%clk 0:01:42.1]} 20... Nxe5 {[%clk
0:02:55.5]} 21. Qd4 {[%clk 0:01:40.5]} 21... Bf6 {[%clk 0:02:45.4]} 22. Qf4
{[%clk 0:01:41.4]} 22... Bg7 {[%clk 0:02:45.7]} 23. Qd4 {[%clk 0:01:42]} 23...
f6 {[%clk 0:02:31.1]} 24. e4 {[%clk 0:01:38.9]} 24... Rcd8 {[%clk 0:02:31.7]}
25. exd5 {[%clk 0:01:38.8]} 25... Rxd5 {[%clk 0:02:32.3]} 26. Qc3 {[%clk
0:01:31.6]} 26... Qb7 {[%clk 0:02:28.8]} 27. Ne4 {[%clk 0:01:32.5]} 27... Rd3
{[%clk 0:02:12.2]} 28. Qc2 {[%clk 0:01:29.8]} 28... Red8 {[%clk 0:02:11.7]} 29.
Nd6 {[%clk 0:01:21.6]} 29... R8xd6 {[%clk 0:02:11.8]} 30. cxd6 {[%clk
0:01:23.5]} 30... c5+ {[%clk 0:02:13.2]} 31. Kh3 {[%clk 0:01:08.5]} 31... Qd7+
{[%clk 0:02:12.3]} 32. Kg2 {[%clk 0:01:09.3]} 32... Qc6+ {[%clk 0:02:13.3]} 33.
Kh3 {[%clk 0:01:10]} 33... c4 {[%clk 0:02:02.2]} 34. Bxe5 {[%clk 0:01:09.9]}
34... fxe5 {[%clk 0:02:03.3]} 35. Qe2 {[%clk 0:01:00.6]} 35... Rd4 {[%clk
0:01:50.7]} 36. Rcd1 {[%clk 0:01:00.4]} 36... Qxd6 {[%clk 0:01:43.4]} 37. Rxd4
{[%clk 0:01:01.2]} 37... exd4 {[%clk 0:01:44.6]} 38. Qe8+ {[%clk 0:00:58]} 38...
Bf8 {[%clk 0:01:45.4]} 39. Qxb5 {[%clk 0:00:58.8]} 39... c3 {[%clk 0:01:41.3]}
40. Qc4+ {[%clk 0:00:59.3]} 40... Kg7 {[%clk 0:01:41.8]} 41. Rd1 {[%clk
0:01:00.3]} 41... Kh6 {[%clk 0:01:14.1]} 42. Qxd4 {[%clk 0:01:00.4]} 42... Qe6+
{[%clk 0:01:07.4]} 43. Kg2 {[%clk 0:01:01.4]} 43... Qc6+ {[%clk 0:01:04.5]} 44.
Qd5 {[%clk 0:01:02]} 44... Qxd5+ {[%clk 0:01:05.4]} 45. Rxd5 {[%clk 0:00:58.6]}
45... c2 {[%clk 0:01:06.9]} 46. Rd8 {[%clk 0:00:59.3]} 46... c1=Q {[%clk
0:01:05.7]} 47. Rxf8 {[%clk 0:01:00.6]} 47... Qxa3 {[%clk 0:01:06.2]} 48. Rf7
{[%clk 0:00:59.4]} 48... a6 {[%clk 0:01:02.8]} 49. Rf4 {[%clk 0:00:59.3]} 49...
Kg7 {[%clk 0:00:59.9]} 50. Re4 {[%clk 0:00:55.4]} 50... Qd3 {[%clk 0:00:59.2]}
51. f3 {[%clk 0:00:56]} 51... g5 {[%clk 0:00:59.1]} 52. h4 {[%clk 0:00:50.5]}
52... h6 {[%clk 0:01:00.5]} 53. hxg5 {[%clk 0:00:38]} 53... hxg5 {[%clk
0:01:01.4]} 54. Kf2 {[%clk 0:00:37.7]} 54... Kf6 {[%clk 0:01:02.3]} 55. g4
{[%clk 0:00:37.1]} 55... Qd2+ {[%clk 0:01:02.6]} 56. Kf1 {[%clk 0:00:36.8]}
56... Qb2 {[%clk 0:00:59.8]} 57. Ke1 {[%clk 0:00:36.6]} 57... Qg2 {[%clk
0:01:00.4]} 58. Re8 {[%clk 0:00:32.2]} 58... Kf7 {[%clk 0:00:59.1]} 59. Re3
{[%clk 0:00:31.6]} 59... Kf8 {[%clk 0:00:35.3]} 60. Rd3 {[%clk 0:00:28.9]} 60...
Ke7 {[%clk 0:00:36]} 61. Re3+ {[%clk 0:00:27.5]} 61... Kd6 {[%clk 0:00:36.9]}
62. Kd1 {[%clk 0:00:22.1]} 62... Kd5 {[%clk 0:00:37.3]} 63. Rd3+ {[%clk
0:00:21.7]} 63... Kc4 {[%clk 0:00:38.2]} 64. Re3 {[%clk 0:00:22.2]} 64... Kxb4
{[%clk 0:00:39.4]} 0-1